[Event "Fagernes GM-A 2019"]
[Site "Fagernes"]
[Date "2019.04.18"]
[Round "4"]
[White "Machlik, Monika"]
[Black "Skotheim, Andreas"]
[Result "1-0"]
[ECO "E36"]
[WhiteElo "2059"]
[BlackElo "2182"]
[Annotator "NA"]
[PlyCount "87"]
[EventDate "2019.04.14"]
[EventType "tourn"]
[EventCountry "NOR"]
[SourceTitle "playchess.com"]
[Source "ChessBase"]
[SourceQuality "1"]
[TimeControl "40/7200:3600"]

1. d4 {[%emt 0:00:02]} Nf6 {[%emt 0:00:15]} 2. c4 {[%emt 0:00:03]} e6 {[%emt 0:00:10]} 3. Nc3 {[%emt 0:00:18]} Bb4 {[%emt 0:00:14]} 4. Qc2 {[%emt 0:00:07]} O-O {[%emt 0:00:16]} 5. a3 {[%emt 0:00:04]} Bxc3+ {[%emt 0:00:09]} 6. Qxc3 {[%emt 0:00:08]} d5 {[%emt 0:00:15]} 7. Nf3 {[%emt 0:00:38]} dxc4 {[%emt 0:00:31]} 8. Qxc4 {[%emt 0:00:18]} b6 {[%emt 0:00:26]} 9. Bg5 {[%emt 0:01:08]} Ba6 {[%emt 0:03:34]} 10. Qa4 {[%emt 0:00:54]} Qe7 {[%emt 0:09:45]} 11. e3 {[%emt 0:11:06]} Bb7 {[%emt 0:08:15]} 12. Rc1 {[%emt 0:06:41]} Rc8 {[%emt 0:03:36]} 13. Be2 {[%emt 0:10:50]} Nbd7 {[%emt 0:05:23]} 14. O-O {[%emt 0:04:32]} a6 {[%emt 0:12:05]} 15. Ne5 {[%emt 0:07:19]} Nxe5 {[%emt 0:14:38]} 16. dxe5 {[%emt 0:02:17]} Qe8 {[%emt 0:00:13]} 17. Qh4 {[%emt 0:35:17]} Nd7 {[%emt 0:02:03]} 18. Bd3 {[%emt 0:06:48]} Nf8 {[%emt 0:02:18]} 19. Qg3 {[%emt 0:03:58]} Kh8 {[%emt 0:01:43]} 20. h4 {[%emt 0:04:16]} Nd7 {[%emt 0:06:04]} 21. Qf4 {[%emt 0:06:31]} Qf8 {[%emt 0:03:42]} 22. h5 {[%emt 0:02:32]} h6 {[%emt 0:13:44]} 23. Bh4 {[%emt 0:00:02]} b5 {[%emt 0:00:39]} 24. Rfd1 {[%emt 0:01:29]} Nb6 {[%emt 0:00:35]} 25. Bb1 {[%emt 0:01:12]} Rab8 {[%emt 0:00:33]} 26. Qg3 {[%emt 0:04:37]} c5 {[%emt 0:03:31]} 27. e4 {[%emt 0:02:00]} c4 {[%emt 0:03:14]} 28. Rd6 {[%emt 0:00:58]} Na4 {[%emt 0:00:49]} 29. Rd2 {[%emt 0:00:30]} Nc5 {[%emt 0:00:25]} 30. Re1 {[%emt 0:00:11]} c3 {[%emt 0:01:02]} 31. bxc3 {[%emt 0:00:11]} Rc7 {[%emt 0:00:45]} 32. f4 {[%emt 0:00:40]} Rd7 {[%emt 0:00:50]} 33. Rxd7 {[%emt 0:00:14]} Nxd7 {[%emt 0:00:05]} 34. Rd1 {[%emt 0:00:20]} Nc5 {[%emt 0:00:11]} 35. Rd4 {[%emt 0:00:13]} Na4 {[%emt 0:01:36]} 36. f5 {[%emt 0:00:16]} Qxa3 {[%emt 0:01:22]} 37. f6 {[%emt 0:00:37]} g5 {[%emt 0:01:06]} 38. hxg6 {[%emt 0:00:30]} Rg8 {[%emt 0:01:32]} 39. g7+ {[%emt 0:00:09]} Kh7 {[%emt 0:00:06]} 40. Kh2 {[%emt 0:00:01]} Qxc3 {[%emt 0:01:49]} 41. Rd3 {[%emt 0:17:06]} Qc7 {[%emt 0:03:32]} 42. Bg5 {[%emt 0:16:34]} Bxe4 {[%emt 0:02:26]} 43. Rd7 {[%emt 0:09:58]} Qc4 {[%emt 0:01:01]} 44. Qh4 {[%emt 0:02:05]} 1-0

[Event "Fagernes GM-A 2019"]
[Site "Fagernes"]
[Date "2019.04.18"]
[Round "4"]
[White "Fuglestein, Sander"]
[Black "Dahl, Trygve"]
[Result "0-1"]
[ECO "E62"]
[WhiteElo "2000"]
[BlackElo "2275"]
[Annotator "NA"]
[PlyCount "136"]
[EventDate "2019.04.14"]
[EventType "tourn"]
[EventCountry "NOR"]
[SourceTitle "playchess.com"]
[Source "ChessBase"]
[SourceQuality "1"]
[TimeControl "40/7200:3600"]

1. d4 {[%emt 0:00:02]} Nf6 {[%emt 0:02:44]} 2. c4 {[%emt 0:00:05]} g6 {[%emt 0:01:39]} 3. Nf3 {[%emt 0:00:10]} Bg7 {[%emt 0:00:04]} 4. g3 {[%emt 0:00:06]} O-O {[%emt 0:00:16]} 5. Bg2 {[%emt 0:00:03]} d6 {[%emt 0:02:00]} 6. O-O {[%emt 0:00:08]} Nc6 {[%emt 0:00:10]} 7. Nc3 {[%emt 0:00:29]} e5 {[%emt 0:04:01]} 8. d5 {[%emt 0:03:03]} Ne7 {[%emt 0:00:05]} 9. e4 {[%emt 0:00:47]} Nd7 {[%emt 0:03:13]} 10. Ne1 {[%emt 0:03:21]} f5 {[%emt 0:04:01]} 11. Nd3 {[%emt 0:03:10]} Nf6 {[%emt 0:01:52]} 12. f4 {[%emt 0:03:35]} exf4 {[%emt 0:05:06]} 13. Bxf4 {[%emt 0:07:06]} fxe4 {[%emt 0:07:54]} 14. Nxe4 {[%emt 0:00:17]} Nxe4 {[%emt 0:00:34]} 15. Bxe4 {[%emt 0:00:11]} Bh3 {[%emt 0:00:05]} 16. Bg2 {[%emt 0:02:35]} Bd4+ {[%emt 0:01:46]} 17. Kh1 {[%emt 0:00:17]} Bxg2+ {[%emt 0:00:19]} 18. Kxg2 {[%emt 0:00:08]} Nf5 {[%emt 0:00:15]} 19. Qd2 {[%emt 0:04:53]} Qd7 {[%emt 0:02:48]} 20. Rae1 {[%emt 0:17:18]} Rae8 {[%emt 0:00:07]} 21. Rxe8 {[%emt 0:09:42]} Rxe8 {[%emt 0:00:02]} 22. Re1 {[%emt 0:00:46]} a6 {[%emt 0:02:57]} 23. b3 {[%emt 0:06:20]} Re7 {[%emt 0:04:21]} 24. Bg5 {[%emt 0:05:59]} Re8 {[%emt 0:01:30]} 25. Rxe8+ {[%emt 0:09:38]} Qxe8 {[%emt 0:00:09]} 26. Qe1 {[%emt 0:00:14]} Ne3+ {[%emt 0:26:11]} 27. Bxe3 {[%emt 0:02:40]} Qe4+ {[%emt 0:00:34]} 28. Kf2 {[%emt 0:02:08]} Qxd3 {[%emt 0:00:06]} 29. Bxd4 {[%emt 0:01:02]} Qxd4+ {[%emt 0:00:05]} 30. Qe3 {[%emt 0:02:51]} Qb2+ {[%emt 0:00:05]} 31. Qe2 {[%emt 0:00:15]} Qxe2+ {[%emt 0:00:07]} 32. Kxe2 {[%emt 0:00:09]} Kf7 {[%emt 0:00:02]} 33. Ke3 {[%emt 0:00:26]} Kf6 {[%emt 0:00:05]} 34. Kf4 {[%emt 0:12:29]} g5+ {[%emt 0:00:12]} 35. Ke4 {[%emt 0:00:28]} g4 {[%emt 0:00:57]} 36. Kf4 {[%emt 0:02:32]} h5 {[%emt 0:00:08]} 37. b4 {[%emt 0:02:40]} b5 {[%emt 0:08:45]} 38. Ke4 {[%emt 0:04:43]} Kg5 {[%emt 0:00:24]} 39. Kd3 {[%emt 0:01:01]} Kf5 {[%emt 0:00:31]} 40. Ke3 {[%emt 0:00:27]} Ke5 {[%emt 0:03:47]} 41. Kd3 {[%emt 1:02:21]} Kf5 {[%emt 1:09:01]} 42. Ke3 {[%emt 0:02:17]} bxc4 {[%emt 0:08:45]} 43. Kd4 {[%emt 0:00:00]} c3 {[%emt 0:00:00]} 44. Kxc3 {[%emt 0:00:00]} Ke4 {[%emt 0:00:00]} 45. Kc4 {[%emt 0:00:00]} Kf3 {[%emt 0:00:00]} 46. a4 {[%emt 0:00:00]} Kg2 {[%emt 0:00:00]} 47. a5 {[%emt 0:00:00]} Kxh2 {[%emt 0:00:00]} 48. b5 {[%emt 0:00:00]} axb5+ {[%emt 0:00:00]} 49. Kxb5 {[%emt 0:00:00]} h4 {[%emt 0:00:00]} 50. gxh4 {[%emt 0:00:00]} g3 {[%emt 0:00:00]} 51. a6 {[%emt 0:00:00]} g2 {[%emt 0:00:00]} 52. a7 {[%emt 0:00:00]} g1=Q {[%emt 0:00:00]} 53. a8=Q {[%emt 0:00:00]} Qc5+ {[%emt 0:00:00]} 54. Ka4 {[%emt 0:00:00]} Qc4+ {[%emt 0:00:00]} 55. Ka3 {[%emt 0:00:00]} Qxh4 {[%emt 0:00:00]} 56. Qc6 {[%emt 0:00:00]} Qh7 {[%emt 0:00:00]} 57. Qc3 {[%emt 0:00:00]} Kg2 {[%emt 0:00:00]} 58. Kb2 {[%emt 0:00:00]} Kf2 {[%emt 0:00:00]} 59. Qd2+ {[%emt 0:00:00]} Kf3 {[%emt 0:00:00]} 60. Kc3 {[%emt 0:00:00]} Qe4 {[%emt 0:00:00]} 61. Qd1+ {[%emt 0:00:00]} Kf4 {[%emt 0:00:00]} 62. Kb2 {[%emt 0:00:00]} Ke5 {[%emt 0:00:00]} 63. Qh5+ {[%emt 0:00:00]} Kd4 {[%emt 0:00:00]} 64. Qf7 {[%emt 0:00:00]} Qxd5 {[%emt 0:00:00]} 65. Qxc7 {[%emt 0:00:00]} Qb5+ {[%emt 0:00:00]} 66. Ka1 {[%emt 0:00:00]} Qa4+ {[%emt 0:00:00]} 67. Kb2 {[%emt 0:00:00]} Qb4+ {[%emt 0:00:00]} 68. Ka1 {[%emt 0:00:00]} Qc3+ {[%emt 0:00:00]} 0-1

[Event "Fagernes GM-A 2019"]
[Site "Fagernes"]
[Date "2019.04.18"]
[Round "4"]
[White "Rasmussen, Jonas H"]
[Black "Ukkelberg, Oyvind"]
[Result "1-0"]
[ECO "E10"]
[WhiteElo "1993"]
[BlackElo "1939"]
[Annotator "NA"]
[PlyCount "53"]
[EventDate "2019.04.14"]
[EventType "tourn"]
[EventCountry "NOR"]
[SourceTitle "playchess.com"]
[Source "ChessBase"]
[SourceQuality "1"]
[TimeControl "40/7200:3600"]

1. d4 {[%emt 2:00:00]} c5 {[%emt 0:03:10]} 2. d5 {[%emt 0:00:00]} Nf6 {[%emt 0:01:32]} 3. Nf3 {[%emt 0:00:00]} e6 {[%emt 0:00:19]} 4. c4 {[%emt 0:00:00]} b5 {[%emt 0:00:32]} 5. dxe6 {[%emt 0:00:00]} fxe6 {[%emt 0:00:10]} 6. cxb5 {[%emt 0:00:00]} d5 {[%emt 0:01:30]} 7. Nc3 {[%emt 0:00:00]} Bd6 {[%emt 0:02:19]} 8. e4 {[%emt 0:00:00]} dxe4 {[%emt 0:09:06]} 9. Ng5 {[%emt 0:00:00]} Qe7 {[%emt 0:01:57]} 10. Ngxe4 {[%emt 0:00:00]} Be5 {[%emt 0:04:31]} 11. Nxf6+ {[%emt 0:00:00]} Bxf6 {[%emt 0:06:27]} 12. Bf4 {[%emt 0:00:00]} O-O {[%emt 0:06:57]} 13. Bd6 {[%emt 0:00:00]} Bxc3+ {[%emt 0:01:54]} 14. bxc3 {[%emt 0:00:00]} Qf6 {[%emt 0:00:12]} 15. Bxf8 {[%emt 0:00:00]} Qxc3+ {[%emt 0:00:59]} 16. Ke2 {[%emt 0:00:00]} Nc6 {[%emt 0:19:55]} 17. Bxc5 {[%emt 0:00:00]} Qxc5 {[%emt 0:01:36]} 18. bxc6 {[%emt 0:00:00]} Ba6+ {[%emt 0:00:09]} 19. Kf3 {[%emt 0:00:00]} Rf8+ {[%emt 0:04:04]} 20. Kg3 {[%emt 0:00:00]} Qxf2+ {[%emt 0:01:27]} 21. Kh3 {[%emt 0:00:00]} Bc8 {[%emt 0:25:02]} 22. Bc4 {[%emt 0:00:00]} Kh8 {[%emt 0:02:34]} 23. Rf1 {[%emt 0:00:00]} e5+ {[%emt 0:00:51]} 24. g4 {[%emt 0:00:00]} Qe3+ {[%emt 0:05:02]} 25. Kg2 {[%emt 0:00:00]} Qe4+ {[%emt 0:00:32]} 26. Kg3 {[%emt 0:00:00]} Bf5 {[%emt 0:06:53]} 27. Rxf5 {[%emt 0:00:00]} 1-0

[Event "Fagernes GM-A 2019"]
[Site "Fagernes"]
[Date "2019.04.18"]
[Round "4"]
[White "Isha Sharma"]
[Black "Ingebretsen, Jens E"]
[Result "0-1"]
[ECO "C54"]
[WhiteElo "1989"]
[BlackElo "2300"]
[Annotator "NA"]
[PlyCount "150"]
[EventDate "2019.04.14"]
[EventType "tourn"]
[EventCountry "NOR"]
[SourceTitle "playchess.com"]
[Source "ChessBase"]
[SourceQuality "1"]
[TimeControl "40/7200:3600"]

1. e4 {[%emt 0:00:06]} e5 {[%emt 0:01:48]} 2. Nf3 {[%emt 0:00:15]} Nc6 {[%emt 0:00:05]} 3. Bc4 {[%emt 0:00:11]} Bc5 {[%emt 0:00:10]} 4. c3 {[%emt 0:00:12]} Nf6 {[%emt 0:00:07]} 5. d3 {[%emt 0:00:10]} O-O {[%emt 0:00:09]} 6. Nbd2 {[%emt 0:00:38]} a6 {[%emt 0:00:16]} 7. Bb3 {[%emt 0:00:12]} Ba7 {[%emt 0:00:11]} 8. Nf1 {[%emt 0:02:52]} d5 {[%emt 0:01:46]} 9. Qe2 {[%emt 0:00:07]} Be6 {[%emt 0:05:37]} 10. Ng3 {[%emt 0:01:29]} Re8 {[%emt 0:02:35]} 11. h3 {[%emt 0:01:22]} h6 {[%emt 0:01:23]} 12. O-O {[%emt 0:10:21]} Qd7 {[%emt 0:03:59]} 13. Be3 {[%emt 0:05:26]} d4 {[%emt 0:01:47]} 14. Bxe6 {[%emt 0:05:55]} Rxe6 {[%emt 0:00:27]} 15. Bc1 {[%emt 0:00:40]} dxc3 {[%emt 0:01:52]} 16. bxc3 {[%emt 0:00:11]} b5 {[%emt 0:01:32]} 17. Rb1 {[%emt 0:05:16]} Rd8 {[%emt 0:04:12]} 18. Rd1 {[%emt 0:00:13]} Rd6 {[%emt 0:00:58]} 19. Ne1 {[%emt 0:01:39]} Qe6 {[%emt 0:01:42]} 20. Nf5 {[%emt 0:06:30]} R6d7 {[%emt 0:00:12]} 21. Nf3 {[%emt 0:00:11]} Ne7 {[%emt 0:08:36]} 22. g4 {[%emt 0:05:24]} Ng6 {[%emt 0:04:52]} 23. Be3 {[%emt 0:08:25]} Bxe3 {[%emt 0:02:55]} 24. fxe3 {[%emt 0:00:11]} c5 {[%emt 0:01:42]} 25. Ng3 {[%emt 0:01:23]} c4 {[%emt 0:03:00]} 26. d4 {[%emt 0:13:32]} exd4 {[%emt 0:01:23]} 27. exd4 {[%emt 0:00:10]} Nf4 {[%emt 0:01:03]} 28. Qh2 {[%emt 0:02:13]} Nd3 {[%emt 0:03:27]} 29. Qe2 {[%emt 0:06:14]} Re8 {[%emt 0:01:50]} 30. Ne1 {[%emt 0:02:30]} Nf4 {[%emt 0:01:03]} 31. Qf1 {[%emt 0:00:06]} g5 {[%emt 0:01:41]} 32. e5 {[%emt 0:04:52]} N6d5 {[%emt 0:03:09]} 33. Rdc1 {[%emt 0:03:14]} f6 {[%emt 0:13:11]} 34. Nf5 {[%emt 0:10:07]} fxe5 {[%emt 0:01:42]} 35. Nf3 {[%emt 0:00:03]} Nd3 {[%emt 0:02:44]} 36. Nxe5 {[%emt 0:02:02]} Nxe5 {[%emt 0:00:49]} 37. dxe5 {[%emt 0:00:20]} Qb6+ {[%emt 0:01:04]} 38. Qf2 {[%emt 0:00:22]} Qxf2+ {[%emt 0:01:36]} 39. Kxf2 {[%emt 0:00:03]} Nf4 {[%emt 0:00:37]} 40. Rd1 {[%emt 0:01:24]} Nd3+ {[%emt 0:01:16]} 41. Kg3 {[%emt 1:00:05]} Kh7 {[%emt 1:01:01]} 42. a4 {[%emt 0:01:01]} Rxe5 {[%emt 0:01:02]} 43. axb5 {[%emt 0:00:21]} axb5 {[%emt 0:01:30]} 44. Ra1 {[%emt 0:02:05]} h5 {[%emt 0:13:23]} 45. Rd2 {[%emt 0:06:13]} h4+ {[%emt 0:01:40]} 46. Kh2 {[%emt 0:00:21]} Red5 {[%emt 0:03:08]} 47. Ne3 {[%emt 0:00:00]} Rc5 {[%emt 0:00:00]} 48. Ra6 {[%emt 0:00:00]} Rdc7 {[%emt 0:00:00]} 49. Nf5 {[%emt 0:00:00]} R5c6 {[%emt 0:00:00]} 50. Ra5 {[%emt 0:00:00]} Rb6 {[%emt 0:00:00]} 51. Ne3 {[%emt 0:00:00]} Rd7 {[%emt 0:00:00]} 52. Ra1 {[%emt 0:00:00]} Re6 {[%emt 0:00:00]} 53. Nf5 {[%emt 0:00:00]} Rb7 {[%emt 0:00:00]} 54. Rc2 {[%emt 0:00:00]} Rd7 {[%emt 0:00:00]} 55. Rd2 {[%emt 0:00:00]} Kg6 {[%emt 0:00:00]} 56. Rb1 {[%emt 0:00:00]} Rd5 {[%emt 0:00:00]} 57. Nd4 {[%emt 0:00:00]} Rb6 {[%emt 0:00:00]} 58. Nf5 {[%emt 0:00:00]} Re5 {[%emt 0:00:00]} 59. Ra2 {[%emt 0:00:00]} Re4 {[%emt 0:00:00]} 60. Rc2 {[%emt 0:00:00]} Kf6 {[%emt 0:00:00]} 61. Rf1 {[%emt 0:00:00]} Nf4 {[%emt 0:00:00]} 62. Rd2 {[%emt 0:00:00]} Rbe6 {[%emt 0:00:00]} 63. Nd4 {[%emt 0:00:00]} Rd6 {[%emt 0:00:00]} 64. Rb2 {[%emt 0:00:00]} Re3 {[%emt 0:00:00]} 65. Nf3 {[%emt 0:00:00]} Rd5 {[%emt 0:00:00]} 66. Ra2 {[%emt 0:00:00]} Rxc3 {[%emt 0:00:00]} 67. Ra6+ {[%emt 0:00:00]} Ke7 {[%emt 0:00:00]} 68. Nxg5 {[%emt 0:00:00]} Rxg5 {[%emt 0:00:00]} 69. Rxf4 {[%emt 0:00:00]} Re5 {[%emt 0:00:00]} 70. g5 {[%emt 0:00:00]} Rc2+ {[%emt 0:00:00]} 71. Kg1 {[%emt 0:00:00]} Re1+ {[%emt 0:00:00]} 72. Rf1 {[%emt 0:00:00]} Rxf1+ {[%emt 0:00:00]} 73. Kxf1 {[%emt 0:00:00]} b4 {[%emt 0:00:00]} 74. g6 {[%emt 0:00:00]} b3 {[%emt 0:00:00]} 75. Ra7+ {[%emt 0:00:00]} Kf8 {[%emt 0:00:00]} 0-1

[Event "Fagernes GM-A 2019"]
[Site "Fagernes"]
[Date "2019.04.17"]
[Round "5.18"]
[White "Grover, Sigurd Loe"]
[Black "Nordquelle, Daniel"]
[Result "0-1"]
[ECO "A84"]
[WhiteElo "2020"]
[BlackElo "2264"]
[Annotator "RC"]
[PlyCount "119"]
[EventDate "2019.04.14"]
[EventType "tourn"]
[EventCountry "NOR"]
[SourceTitle "playchess.com"]
[Source "ChessBase"]
[SourceQuality "1"]
[TimeControl "40/7200:3600"]

1. e3 {[%emt 0:00:02]} d5 {[%emt 0:00:29]} 2. c4 {[%emt 0:00:09]} c6 {[%emt 0:00:11]} 3. Nf3 {[%emt 0:00:28]} e6 {[%emt 0:00:08]} 4. d4 {[%emt 0:00:41]} Bd6 {[%emt 0:00:20]} 5. Bd3 {[%emt 0:02:43]} f5 {[%emt 0:00:07]} 6. O-O {[%emt 0:05:04]} Nh6 {[%emt 0:01:16]} 7. b3 {[%emt 0:01:48]} Qe7 {[%emt 0:00:20]} 8. Bb2 {[%emt 0:03:17]} a5 {[%emt 0:03:35]} 9. Nc3 {[%emt 0:07:35]} Nd7 {[%emt 0:00:46]} 10. Ne2 {[%emt 0:02:02]} O-O {[%emt 0:08:09]} 11. Nf4 {[%emt 0:02:01]} Nf7 {[%emt 0:03:20]} 12. Be2 {[%emt 0:04:30]} Qf6 {[%emt 0:06:09]} 13. Qc1 {[%emt 0:01:26]} Re8 {[%emt 0:19:43]} 14. Nd3 {[%emt 0:05:20]} b6 {[%emt 0:04:17]} 15. c5 {[%emt 0:03:16]} Bb8 {[%emt 0:06:49]} 16. cxb6 {[%emt 0:00:31]} Nd8 {[%emt 0:00:20]} 17. Nfe5 {[%emt 0:02:30]} Bxe5 {[%emt 0:11:21]} 18. dxe5 {[%emt 0:03:05]} Qf7 {[%emt 0:06:00]} 19. Bd4 {[%emt 0:00:55]} Ba6 {[%emt 0:00:05]} 20. Qc2 {[%emt 0:13:44]} Bxd3 {[%emt 0:00:40]} 21. Bxd3 {[%emt 0:00:03]} c5 {[%emt 0:00:44]} 22. Bb2 {[%emt 0:00:08]} Nb7 {[%emt 0:03:12]} 23. g4 {[%emt 0:07:46]} Qg6 {[%emt 0:19:22]} 24. h3 {[%emt 0:05:04]} Nxb6 {[%emt 0:09:59]} 25. Kh2 {[%emt 0:10:02]} c4 {[%emt 0:03:12]} 26. bxc4 {[%emt 0:00:06]} dxc4 {[%emt 0:00:06]} 27. Be2 {[%emt 0:00:08]} Rac8 {[%emt 0:00:47]} 28. gxf5 {[%emt 0:35:36]} exf5 {[%emt 0:08:33]} 29. Bd4 {[%emt 0:00:00]} Kh8 {[%emt 0:00:00]} 30. Rab1 {[%emt 0:00:00]} Nc5 {[%emt 0:00:00]} 31. Rg1 {[%emt 0:00:00]} Qe6 {[%emt 0:00:00]} 32. Rb5 {[%emt 0:00:00]} Ncd7 {[%emt 0:00:00]} 33. e4 {[%emt 0:00:00]} fxe4 {[%emt 0:00:00]} 34. Bg4 {[%emt 0:00:00]} Qc6 {[%emt 0:00:00]} 35. Qb1 {[%emt 0:00:00]} Na4 {[%emt 0:00:00]} 36. Bf5 {[%emt 0:00:00]} Rcd8 {[%emt 0:00:00]} 37. Rb7 {[%emt 0:00:00]} Qd5 {[%emt 0:00:00]} 38. Ba1 {[%emt 0:00:00]} c3 {[%emt 0:00:00]} 39. Qxe4 {[%emt 0:00:00]} Qxe4 {[%emt 0:00:00]} 40. Bxe4 {[%emt 0:00:00]} Nac5 {[%emt 0:00:00]} 41. Rxd7 {[%emt 0:57:59]} Nxd7 {[%emt 0:03:38]} 42. Bxc3 {[%emt 0:00:00]} Nc5 {[%emt 0:06:49]} 43. Bb1 {[%emt 0:00:00]} a4 {[%emt 0:06:53]} 44. f4 {[%emt 0:00:00]} Ne6 {[%emt 0:08:47]} 45. Kg3 {[%emt 0:00:00]} g6 {[%emt 0:01:37]} 46. h4 {[%emt 0:00:00]} Rc8 {[%emt 0:03:10]} 47. Bd2 {[%emt 0:00:00]} Red8 {[%emt 0:01:52]} 48. Rg2 {[%emt 0:00:00]} Rb8 {[%emt 0:04:45]} 49. Be4 {[%emt 0:00:00]} Rd4 {[%emt 0:00:43]} 50. Kf3 {[%emt 0:00:00]} Rb2 {[%emt 0:03:22]} 51. Bc3 {[%emt 0:00:00]} Rxg2 {[%emt 0:00:10]} 52. Bxd4 {[%emt 0:00:00]} Rxa2 {[%emt 0:00:08]} 53. Be3 {[%emt 0:00:00]} Ng7 {[%emt 0:02:06]} 54. Bd4 {[%emt 0:00:00]} Nf5 {[%emt 0:00:58]} 55. Bb6 {[%emt 0:00:00]} Kg7 {[%emt 0:03:07]} 56. Bd8 {[%emt 0:00:00]} Rd2 {[%emt 0:01:07]} 57. Bf6+ {[%emt 0:00:00]} Kf7 {[%emt 0:00:15]} 58. Bc6 {[%emt 0:00:00]} a3 {[%emt 0:10:33]} 59. Bb5 {[%emt 0:02:01]} a2 {[%emt 0:00:00]} 60. Bc4+ 0-1

[Event "Fagernes GM-A 2019"]
[Site "Fagernes"]
[Date "2019.04.18"]
[Round "6.1"]
[White "Demchenko, Anton"]
[Black "Urkedal, Frode Olav Olsen"]
[Result "1-0"]
[ECO "C54"]
[WhiteElo "2661"]
[BlackElo "2513"]
[Annotator "ChessBase"]
[PlyCount "89"]
[EventDate "2019.04.14"]
[EventType "tourn"]
[EventCountry "NOR"]
[SourceTitle "playchess.com"]
[Source "ChessBase"]
[SourceQuality "1"]
[TimeControl "40/7200:3600"]

1. e4 {[%emt 0:00:02]} e5 {[%emt 0:00:06]} 2. Nf3 {[%emt 0:00:05]} Nc6 {[%emt 0:00:03]} 3. Bc4 {[%emt 0:00:05]} Nf6 {[%emt 0:00:04]} 4. d3 {[%emt 0:00:04]} h6 {[%emt 0:00:04]} 5. a4 {[%emt 0:05:37]} Bc5 {[%emt 0:05:06]} 6. c3 {[%emt 0:01:43]} a6 {[%emt 0:00:58]} 7. O-O {[%emt 0:00:47]} d6 {[%emt 0:00:26]} 8. Nbd2 {[%emt 0:05:37]} Ba7 {[%emt 0:01:24]} 9. Re1 {[%emt 0:03:03]} g5 {[%emt 0:00:50]} 10. b4 {[%emt 0:03:20]} Nh5 {[%emt 0:00:39]} 11. Nb3 {[%emt 0:13:56]} g4 {[%emt 0:01:01]} 12. b5 {[%emt 0:05:23]} axb5 {[%emt 0:00:25]} 13. axb5 {[%emt 0:00:04]} Bxf2+ {[%emt 0:00:21]} 14. Kxf2 {[%emt 0:00:01]} Rxa1 {[%emt 0:00:07]} 15. Nxa1 {[%emt 0:00:18]} gxf3 {[%emt 0:00:10]} 16. g3 {[%emt 0:01:48]} Na5 {[%emt 0:00:24]} 17. Qxf3 {[%emt 0:00:11]} Nxc4 {[%emt 0:00:09]} 18. Qxh5 {[%emt 0:00:20]} Nb6 {[%emt 0:00:06]} 19. Nc2 {[%emt 0:06:54]} Na4 {[%emt 0:02:18]} 20. c4 {[%emt 0:03:27]} c6 {[%emt 0:18:57]} 21. bxc6 {[%emt 0:02:57]} Qb6+ {[%emt 0:10:26]} 22. Kg2 {[%emt 0:14:10]} bxc6 {[%emt 0:01:46]} 23. Ne3 {[%emt 0:00:30]} Nc5 {[%emt 0:01:05]} 24. Rf1 {[%emt 0:01:54]} Qa7 {[%emt 0:08:14]} 25. Ba3 {[%emt 0:09:27]} Nxd3 {[%emt 0:10:22]} 26. Bxd6 {[%emt 0:02:02]} Be6 {[%emt 0:00:08]} 27. Qh4 {[%emt 0:06:27]} Rg8 {[%emt 0:04:06]} 28. Ra1 {[%emt 0:05:16]} Nf4+ {[%emt 0:00:49]} 29. Kf3 {[%emt 0:01:11]} Qxe3+ {[%emt 0:00:29]} 30. Kxe3 {[%emt 0:00:02]} Ng2+ {[%emt 0:00:10]} 31. Kf2 {[%emt 0:01:02]} Nxh4 {[%emt 0:00:08]} 32. Ra8+ {[%emt 0:00:12]} Kd7 {[%emt 0:00:06]} 33. Rxg8 {[%emt 0:00:03]} Kxd6 {[%emt 0:01:53]} 34. gxh4 {[%emt 0:00:12]} Bxc4 {[%emt 0:08:18]} 35. Rh8 {[%emt 0:00:51]} Be6 {[%emt 0:02:04]} 36. Rxh6 {[%emt 0:00:23]} Ke7 {[%emt 0:00:06]} 37. Rh5 {[%emt 0:02:14]} f6 {[%emt 0:07:14]} 38. Rh7+ {[%emt 0:00:19]} Bf7 {[%emt 0:02:23]} 39. h5 {[%emt 0:01:32]} Kf8 {[%emt 0:03:06]} 40. h6 {[%emt 0:00:18]} Kg8 {[%emt 0:01:42]} 41. Rg7+ {[%emt 1:00:08]} Kf8 {[%emt 1:00:04]} 42. Rg3 {[%emt 0:00:50]} Bg8 {[%emt 0:00:06]} 43. Rg6 {[%emt 0:00:39]} Bh7 {[%emt 0:01:49]} 44. Rxf6+ {[%emt 0:00:05]} Kg8 {[%emt 0:00:05]} 45. Ke3 {[%emt 0:00:12]} 1-0

[Event "Fagernes GM-A 2019"]
[Site "Fagernes"]
[Date "2019.04.18"]
[Round "6.2"]
[White "Mikalsen, Erlend"]
[Black "Alekseev, Evgeny"]
[Result "1/2-1/2"]
[ECO "B46"]
[WhiteElo "2397"]
[BlackElo "2649"]
[Annotator "ChessBase"]
[PlyCount "48"]
[EventDate "2019.04.14"]
[EventType "tourn"]
[EventCountry "NOR"]
[SourceTitle "playchess.com"]
[Source "ChessBase"]
[SourceQuality "1"]
[TimeControl "40/7200:3600"]

1. e4 {[%emt 0:00:03]} c5 {[%emt 0:03:15]} 2. Nf3 {[%emt 0:00:07]} e6 {[%emt 0:00:46]} 3. d4 {[%emt 0:00:05]} cxd4 {[%emt 0:00:25]} 4. Nxd4 {[%emt 0:00:05]} a6 {[%emt 0:00:37]} 5. Nc3 {[%emt 0:00:07]} Nc6 {[%emt 0:02:04]} 6. Nxc6 {[%emt 0:00:12]} bxc6 {[%emt 0:00:09]} 7. Bd3 {[%emt 0:00:04]} d5 {[%emt 0:01:30]} 8. O-O {[%emt 0:00:06]} Nf6 {[%emt 0:01:00]} 9. Qf3 {[%emt 0:01:03]} Be7 {[%emt 0:03:31]} 10. Qg3 {[%emt 0:00:28]} O-O {[%emt 0:00:45]} 11. Bh6 {[%emt 0:00:03]} Ne8 {[%emt 0:00:11]} 12. Bf4 {[%emt 0:00:06]} f6 {[%emt 0:01:09]} 13. Rad1 {[%emt 0:12:07]} e5 {[%emt 0:13:26]} 14. Bc1 {[%emt 0:00:54]} d4 {[%emt 0:01:27]} 15. f4 {[%emt 0:08:22]} exf4 {[%emt 0:23:51]} 16. Bxf4 {[%emt 0:02:22]} Be6 {[%emt 0:03:28]} 17. Ne2 {[%emt 0:01:52]} c5 {[%emt 0:02:55]} 18. b3 {[%emt 0:05:44]} a5 {[%emt 0:18:23]} 19. e5 {[%emt 0:17:36]} Qd7 {[%emt 0:15:01]} 20. Qf3 {[%emt 0:13:15]} Ra7 {[%emt 0:07:24]} 21. Qh5 {[%emt 0:00:56]} f5 {[%emt 0:00:29]} 22. Bg5 {[%emt 0:06:27]} g6 {[%emt 0:01:25]} 23. Qh4 {[%emt 0:00:44]} Bxg5 {[%emt 0:06:11]} 24. Qxg5 {[%emt 0:00:06]} Ng7 {[%emt 0:01:52]} 1/2-1/2